[Event "*** SCC Grand Prix: Titled Tuesday Blitz"]
[Site "Chess.com"]
[Date "2020.10.13"]
[Round "7"]
[White "AlexSuv"]
[Black "German_Bazeev"]
[Result "0-1"]
[WhiteElo "2533"]
[BlackElo "2713"]
[TimeControl "180+1"]
[EndTime "11:18:12 PDT"]
[Termination "German_Bazeev won by resignation"]

1. d4 {[%clk 0:03:00.9]} 1... Nf6 {[%clk 0:02:54.8]} 2. c4 {[%clk 0:03:00.8]}
2... e6 {[%clk 0:02:54.2]} 3. Nc3 {[%clk 0:03:01.4]} 3... d5 {[%clk 0:02:54.3]}
4. e3 {[%clk 0:03:02]} 4... c6 {[%clk 0:02:53.6]} 5. Nf3 {[%clk 0:03:00.6]} 5...
Nbd7 {[%clk 0:02:53.8]} 6. Qc2 {[%clk 0:03:01]} 6... Bd6 {[%clk 0:02:51.2]} 7.
Bd3 {[%clk 0:03:00.6]} 7... O-O {[%clk 0:02:51.8]} 8. O-O {[%clk 0:03:00.4]}
8... dxc4 {[%clk 0:02:52.4]} 9. Bxc4 {[%clk 0:03:00.9]} 9... b5 {[%clk 0:02:53]}
10. Be2 {[%clk 0:03:01.2]} 10... Bb7 {[%clk 0:02:53.6]} 11. e4 {[%clk
0:03:01.5]} 11... e5 {[%clk 0:02:53.5]} 12. Rd1 {[%clk 0:03:02.1]} 12... Qe7
{[%clk 0:02:53.1]} 13. dxe5 {[%clk 0:02:36.3]} 13... Nxe5 {[%clk 0:02:54]} 14.
Nd4 {[%clk 0:02:36.7]} 14... g6 {[%clk 0:02:06.6]} 15. Bg5 {[%clk 0:02:33.3]}
15... Rad8 {[%clk 0:02:00.3]} 16. Nb3 {[%clk 0:02:11.9]} 16... Nc4 {[%clk
0:01:22.7]} 17. Bxc4 {[%clk 0:01:54.3]} 17... bxc4 {[%clk 0:01:23.6]} 18. Na5
{[%clk 0:01:52.6]} 18... Bxh2+ {[%clk 0:01:10.7]} 19. Kxh2 {[%clk 0:01:39.7]}
19... Ng4+ {[%clk 0:01:09.2]} 20. Kg1 {[%clk 0:01:40]} 20... Qxg5 {[%clk
0:01:07.8]} 21. Nxb7 {[%clk 0:01:40.1]} 21... Rb8 {[%clk 0:01:01.5]} 22. Nd6
{[%clk 0:01:28.4]} 22... Qh4 {[%clk 0:01:00.7]} 23. Nxc4 {[%clk 0:01:09.8]}
23... Qh2+ {[%clk 0:00:52.8]} 24. Kf1 {[%clk 0:01:09.7]} 24... Qh1+ {[%clk
0:00:53.7]} 25. Ke2 {[%clk 0:01:10.2]} 25... Qxg2 {[%clk 0:00:54.6]} 26. Rf1
{[%clk 0:01:04.5]} 26... Nh2 {[%clk 0:00:46.5]} 27. Rg1 {[%clk 0:00:59]} 27...
Qf3+ {[%clk 0:00:44.1]} 28. Ke1 {[%clk 0:00:59.4]} 28... Rb4 {[%clk 0:00:39.6]}
29. Ne3 {[%clk 0:00:38.9]} 29... Qh5 {[%clk 0:00:39.6]} 30. Qe2 {[%clk 0:00:14]}
30... Nf3+ {[%clk 0:00:37.1]} 31. Kf1 {[%clk 0:00:14.6]} 31... Qh3+ {[%clk
0:00:21.7]} 32. Ng2 {[%clk 0:00:14.9]} 32... Nh2+ {[%clk 0:00:19.9]} 33. Ke1
{[%clk 0:00:15]} 33... Nf3+ {[%clk 0:00:20.8]} 34. Kf1 {[%clk 0:00:15.6]} 34...
Rd8 {[%clk 0:00:17.6]} 35. Rd1 {[%clk 0:00:11.5]} 35... Nh2+ {[%clk 0:00:16.5]}
36. Ke1 {[%clk 0:00:11.6]} 36... Nf3+ {[%clk 0:00:15.7]} 37. Kf1 {[%clk
0:00:11.7]} 37... Rxd1+ {[%clk 0:00:14.4]} 38. Nxd1 {[%clk 0:00:10.1]} 38...
Rxe4 {[%clk 0:00:13.6]} 39. Ne3 {[%clk 0:00:06.9]} 39... Nh2+ {[%clk 0:00:12.1]}
40. Ke1 {[%clk 0:00:07.2]} 40... Nf3+ {[%clk 0:00:12.7]} 41. Kf1 {[%clk
0:00:07.7]} 41... Nxg1 {[%clk 0:00:12.4]} 42. Kxg1 {[%clk 0:00:08.5]} 42... Qe6
{[%clk 0:00:10.6]} 43. Qc2 {[%clk 0:00:08.6]} 43... Rd4 {[%clk 0:00:09.8]} 44.
b3 {[%clk 0:00:08.3]} 44... h5 {[%clk 0:00:09.8]} 45. Qc5 {[%clk 0:00:08]} 45...
Rd7 {[%clk 0:00:08.1]} 46. Nf4 {[%clk 0:00:05.8]} 46... Qd6 {[%clk 0:00:08.3]}
47. Qxd6 {[%clk 0:00:04.8]} 47... Rxd6 {[%clk 0:00:09.2]} 48. Kg2 {[%clk
0:00:05.5]} 48... Kg7 {[%clk 0:00:09.2]} 49. Kf3 {[%clk 0:00:06]} 49... Rd7
{[%clk 0:00:08.9]} 50. Ne2 {[%clk 0:00:06.6]} 50... g5 {[%clk 0:00:08.6]} 51.
Nc3 {[%clk 0:00:07.2]} 51... Kg6 {[%clk 0:00:07.6]} 52. Ne4 {[%clk 0:00:07.7]}
52... f5 {[%clk 0:00:08]} 53. Nc5 {[%clk 0:00:08.2]} 53... Re7 {[%clk
0:00:07.7]} 54. Nc4 {[%clk 0:00:08.6]} 54... f4 {[%clk 0:00:06.5]} 55. Nd3
{[%clk 0:00:07.3]} 55... Kf5 {[%clk 0:00:04.6]} 56. Nb4 {[%clk 0:00:07.7]} 56...
g4+ {[%clk 0:00:04.8]} 57. Kg2 {[%clk 0:00:08.2]} 57... h4 {[%clk 0:00:05.1]}
58. Nxc6 {[%clk 0:00:07.8]} 58... h3+ {[%clk 0:00:06]} 59. Kf1 {[%clk
0:00:07.3]} 59... Rh7 {[%clk 0:00:04.9]} 60. Nd4+ {[%clk 0:00:07.4]} 60... Ke4
{[%clk 0:00:04.6]} 61. Ne6 {[%clk 0:00:06.6]} 61... h2 {[%clk 0:00:04.5]} 62.
Ng5+ {[%clk 0:00:06.9]} 62... Kf5 {[%clk 0:00:05.1]} 63. Nxh7 {[%clk 0:00:07.5]}
63... h1=Q+ {[%clk 0:00:05.3]} 0-1

[Event "*** SCC Grand Prix: Titled Tuesday Blitz"]
[Site "Chess.com"]
[Date "2020.10.13"]
[Round "7"]
[White "Grieve72"]
[Black "MaxLeto"]
[Result "0-1"]
[WhiteElo "2456"]
[BlackElo "2326"]
[TimeControl "180+1"]
[EndTime "11:18:13 PDT"]
[Termination "MaxLeto won by checkmate"]

1. e4 {[%clk 0:03:00.9]} 1... c5 {[%clk 0:02:47]} 2. Nc3 {[%clk 0:02:59.8]} 2...
d6 {[%clk 0:02:46.4]} 3. Nf3 {[%clk 0:02:57.2]} 3... Nf6 {[%clk 0:02:44.4]} 4.
d4 {[%clk 0:02:56.9]} 4... cxd4 {[%clk 0:02:44.9]} 5. Nxd4 {[%clk 0:02:57.8]}
5... a6 {[%clk 0:02:45.4]} 6. f3 {[%clk 0:02:58.3]} 6... e6 {[%clk 0:02:44.3]}
7. Be3 {[%clk 0:02:57.8]} 7... b5 {[%clk 0:02:44.9]} 8. Qd2 {[%clk 0:02:54.4]}
8... Bb7 {[%clk 0:02:45]} 9. g4 {[%clk 0:02:51.5]} 9... h6 {[%clk 0:02:45.1]}
10. O-O-O {[%clk 0:02:39.4]} 10... Nbd7 {[%clk 0:02:40.6]} 11. Kb1 {[%clk
0:02:32.6]} 11... b4 {[%clk 0:02:39.4]} 12. Na4 {[%clk 0:02:22]} 12... d5 {[%clk
0:02:36.7]} 13. exd5 {[%clk 0:02:00.1]} 13... Nxd5 {[%clk 0:02:37.6]} 14. Bf2
{[%clk 0:01:41.9]} 14... Bd6 {[%clk 0:02:29.2]} 15. Nb3 {[%clk 0:01:30]} 15...
Qc7 {[%clk 0:02:23.2]} 16. Bd3 {[%clk 0:01:12.7]} 16... O-O {[%clk 0:02:19.4]}
17. h4 {[%clk 0:01:04.9]} 17... Ne5 {[%clk 0:02:00.9]} 18. Be4 {[%clk
0:01:01.7]} 18... Nc4 {[%clk 0:01:46.3]} 19. Qd3 {[%clk 0:00:29.4]} 19... Rfd8
{[%clk 0:01:44.8]} 20. Nac5 {[%clk 0:00:22.6]} 20... Bxc5 {[%clk 0:01:44.8]} 21.
Qxc4 {[%clk 0:00:19.5]} 21... Bxf2 {[%clk 0:01:41]} 22. Qxc7 {[%clk 0:00:15.9]}
22... Nxc7 {[%clk 0:01:38]} 23. Bxb7 {[%clk 0:00:16.8]} 23... Rab8 {[%clk
0:01:36.7]} 24. Be4 {[%clk 0:00:11.8]} 24... Nb5 {[%clk 0:01:33.4]} 25. Na5
{[%clk 0:00:09.8]} 25... Rxd1+ {[%clk 0:01:30.6]} 26. Rxd1 {[%clk 0:00:09.2]}
26... Bxh4 {[%clk 0:01:31.5]} 27. Nc6 {[%clk 0:00:07.5]} 27... Rb6 {[%clk
0:01:30.7]} 28. Rd7 {[%clk 0:00:07.3]} 28... f5 {[%clk 0:00:51.4]} 29. gxf5
{[%clk 0:00:07.6]} 29... exf5 {[%clk 0:00:52.3]} 30. Bd5+ {[%clk 0:00:06.9]}
30... Kh7 {[%clk 0:00:52.2]} 31. Ne5 {[%clk 0:00:05.5]} 31... Bf6 {[%clk
0:00:38.5]} 32. f4 {[%clk 0:00:05.9]} 32... Rd6 {[%clk 0:00:35.8]} 33. Rxd6
{[%clk 0:00:04.1]} 33... Nxd6 {[%clk 0:00:36.7]} 34. Be6 {[%clk 0:00:03.2]}
34... g5 {[%clk 0:00:36.1]} 35. Nd3 {[%clk 0:00:03.4]} 35... Kg6 {[%clk
0:00:35.5]} 36. Kc1 {[%clk 0:00:03.5]} 36... a5 {[%clk 0:00:35.7]} 37. Kd2
{[%clk 0:00:03.9]} 37... g4 {[%clk 0:00:33.3]} 38. Ke3 {[%clk 0:00:04.1]} 38...
h5 {[%clk 0:00:33.5]} 39. a3 {[%clk 0:00:04]} 39... bxa3 {[%clk 0:00:29.8]} 40.
bxa3 {[%clk 0:00:04.9]} 40... h4 {[%clk 0:00:30.4]} 41. c4 {[%clk 0:00:05.2]}
41... h3 {[%clk 0:00:21.4]} 42. Kf2 {[%clk 0:00:05.5]} 42... Bh4+ {[%clk
0:00:20.8]} 43. Kg1 {[%clk 0:00:05.7]} 43... Ne4 {[%clk 0:00:18.8]} 44. Bd5
{[%clk 0:00:04.1]} 44... Nc3 {[%clk 0:00:17.7]} 45. Bb7 {[%clk 0:00:03]} 45...
Be7 {[%clk 0:00:15.6]} 46. c5 {[%clk 0:00:02.6]} 46... g3 {[%clk 0:00:12]} 47.
Ne5+ {[%clk 0:00:02.3]} 47... Kf6 {[%clk 0:00:09.7]} 48. Nd7+ {[%clk 0:00:01.1]}
48... Ke6 {[%clk 0:00:09.6]} 49. Bc8 {[%clk 0:00:01.9]} 49... Kd5 {[%clk
0:00:09.2]} 50. c6 {[%clk 0:00:02.2]} 50... Kxc6 {[%clk 0:00:09]} 51. Ne5+
{[%clk 0:00:03.1]} 51... Kc7 {[%clk 0:00:08.9]} 52. Bxf5 {[%clk 0:00:04]} 52...
Ne2+ {[%clk 0:00:08.2]} 53. Kf1 {[%clk 0:00:04.1]} 53... g2+ {[%clk 0:00:08.8]}
54. Kxe2 {[%clk 0:00:04.6]} 54... g1=Q {[%clk 0:00:09.7]} 55. Bxh3 {[%clk
0:00:04.9]} 55... Qh2+ {[%clk 0:00:09.8]} 56. Bg2 {[%clk 0:00:04.4]} 56... Qxg2+
{[%clk 0:00:10.1]} 57. Ke3 {[%clk 0:00:04.4]} 57... Qg3+ {[%clk 0:00:10.3]} 58.
Ke4 {[%clk 0:00:04.7]} 58... Qxa3 {[%clk 0:00:10]} 59. f5 {[%clk 0:00:05.2]}
59... Qb4+ {[%clk 0:00:10.2]} 60. Kd5 {[%clk 0:00:04.7]} 60... Qc5+ {[%clk
0:00:09.5]} 61. Ke6 {[%clk 0:00:05.1]} 61... Qd6+ {[%clk 0:00:09.4]} 62. Kf7
{[%clk 0:00:05.6]} 62... Qxe5 {[%clk 0:00:10]} 63. Ke8 {[%clk 0:00:05.2]} 63...
Bd6+ {[%clk 0:00:09.9]} 64. Kf7 {[%clk 0:00:05.5]} 64... Qxf5+ {[%clk
0:00:10.3]} 65. Ke8 {[%clk 0:00:05.3]} 65... Qd7# {[%clk 0:00:09.5]} 0-1

[Event "*** SCC Grand Prix: Titled Tuesday Blitz"]
[Site "Chess.com"]
[Date "2020.10.13"]
[Round "7"]
[White "Steven_Rojas"]
[Black "LionTheLeon_06"]
[Result "0-1"]
[WhiteElo "2481"]
[BlackElo "2637"]
[TimeControl "180+1"]
[EndTime "11:18:14 PDT"]
[Termination "LionTheLeon_06 won by resignation"]

1. c4 {[%clk 0:03:00.9]} 1... g6 {[%clk 0:03:00.9]} 2. Nc3 {[%clk 0:03:00.9]}
2... Bg7 {[%clk 0:03:01.1]} 3. d4 {[%clk 0:03:01.3]} 3... c5 {[%clk 0:03:00.7]}
4. e3 {[%clk 0:02:50.1]} 4... Nf6 {[%clk 0:02:58.9]} 5. Nf3 {[%clk 0:02:43]}
5... O-O {[%clk 0:02:57.8]} 6. d5 {[%clk 0:02:41.5]} 6... e6 {[%clk 0:02:57.7]}
7. e4 {[%clk 0:02:40.6]} 7... exd5 {[%clk 0:02:57.5]} 8. exd5 {[%clk 0:02:41.1]}
8... d6 {[%clk 0:02:55.9]} 9. Be2 {[%clk 0:02:41.3]} 9... Bf5 {[%clk 0:02:50.4]}
10. O-O {[%clk 0:02:38]} 10... Ne4 {[%clk 0:02:46.8]} 11. Nxe4 {[%clk
0:01:54.6]} 11... Bxe4 {[%clk 0:02:44.8]} 12. Qb3 {[%clk 0:01:53.3]} 12... Nd7
{[%clk 0:02:35.3]} 13. Bd2 {[%clk 0:01:45.7]} 13... Re8 {[%clk 0:02:20.5]} 14.
Rae1 {[%clk 0:01:38.8]} 14... Rb8 {[%clk 0:02:04.7]} 15. Ng5 {[%clk 0:01:19.2]}
15... h6 {[%clk 0:01:45.6]} 16. Nxe4 {[%clk 0:01:17.6]} 16... Rxe4 {[%clk
0:01:46.2]} 17. Bd3 {[%clk 0:01:14.8]} 17... Rxe1 {[%clk 0:01:45.3]} 18. Rxe1
{[%clk 0:01:15.7]} 18... a6 {[%clk 0:01:45.4]} 19. a4 {[%clk 0:01:11.8]} 19...
Ne5 {[%clk 0:01:44]} 20. Bf1 {[%clk 0:01:11.5]} 20... Qc7 {[%clk 0:01:43.9]} 21.
h3 {[%clk 0:01:06.1]} 21... h5 {[%clk 0:01:41.1]} 22. f4 {[%clk 0:01:04.7]}
22... Nd7 {[%clk 0:01:41.2]} 23. Bc3 {[%clk 0:01:05.1]} 23... Nf6 {[%clk
0:01:18.7]} 24. Qc2 {[%clk 0:00:50.1]} 24... Re8 {[%clk 0:01:15.9]} 25. Rxe8+
{[%clk 0:00:35.7]} 25... Nxe8 {[%clk 0:01:16.8]} 26. Bxg7 {[%clk 0:00:31.5]}
26... Nxg7 {[%clk 0:01:10.9]} 27. g4 {[%clk 0:00:26.9]} 27... Qe7 {[%clk
0:01:07.8]} 28. Qe2 {[%clk 0:00:25.8]} 28... Qf6 {[%clk 0:01:06.7]} 29. Qd2
{[%clk 0:00:21.8]} 29... hxg4 {[%clk 0:00:52.8]} 30. hxg4 {[%clk 0:00:22.7]}
30... Qh4 {[%clk 0:00:52.5]} 31. Qg2 {[%clk 0:00:17.9]} 31... Qf6 {[%clk
0:00:47.2]} 32. Qf2 {[%clk 0:00:17.7]} 32... g5 {[%clk 0:00:41.6]} 33. fxg5
{[%clk 0:00:13.3]} 33... Qxg5 {[%clk 0:00:42.5]} 34. Qg3 {[%clk 0:00:06.6]}
34... Qf6 {[%clk 0:00:41]} 35. Qf2 {[%clk 0:00:05.6]} 35... Qg5 {[%clk
0:00:40.7]} 36. Qf3 {[%clk 0:00:05.5]} 36... Nh5 {[%clk 0:00:37.7]} 37. Kf2
{[%clk 0:00:04.7]} 37... Nf4 {[%clk 0:00:37.6]} 38. Kg3 {[%clk 0:00:04.2]} 38...
Ng6 {[%clk 0:00:37.6]} 39. Bd3 {[%clk 0:00:03.6]} 39... Ne5 {[%clk 0:00:35.9]}
40. Qe4 {[%clk 0:00:04.1]} 40... Kf8 {[%clk 0:00:33.1]} 41. b3 {[%clk
0:00:03.9]} 41... Qc1 {[%clk 0:00:32.7]} 42. Be2 {[%clk 0:00:04.1]} 42... Qe1+
{[%clk 0:00:32.3]} 43. Kg2 {[%clk 0:00:03.8]} 43... Qd2 {[%clk 0:00:32.7]} 44.
Kf2 {[%clk 0:00:02.2]} 44... Qc3 {[%clk 0:00:32.4]} 45. Qe3 {[%clk 0:00:02.6]}
45... Qb2 {[%clk 0:00:27.2]} 46. Qh6+ {[%clk 0:00:03]} 46... Ke7 {[%clk
0:00:27.6]} 47. Qg5+ {[%clk 0:00:03.9]} 47... Ke8 {[%clk 0:00:28.1]} 48. Qe3
{[%clk 0:00:04]} 48... Kd7 {[%clk 0:00:26]} 49. Kg3 {[%clk 0:00:04.6]} 49... Qa1
{[%clk 0:00:25.4]} 50. g5 {[%clk 0:00:04.5]} 50... Qh1 {[%clk 0:00:25.1]} 51.
Bg4+ {[%clk 0:00:04.7]} 51... Ke7 {[%clk 0:00:25.3]} 52. Bh3 {[%clk 0:00:02.7]}
52... Qd1 {[%clk 0:00:24.3]} 53. Bf5 {[%clk 0:00:01.5]} 53... Kf8 {[%clk
0:00:23.3]} 54. Bh3 {[%clk 0:00:02]} 54... Ke7 {[%clk 0:00:20]} 55. Bf5 {[%clk
0:00:02.5]} 55... Kd8 {[%clk 0:00:20.6]} 56. Bh3 {[%clk 0:00:03]} 56... Kc7
{[%clk 0:00:21.1]} 57. Qf4 {[%clk 0:00:03]} 57... Qxb3+ {[%clk 0:00:19.7]} 58.
Kh4 {[%clk 0:00:03.3]} 58... Qxc4 {[%clk 0:00:19.6]} 59. Qxc4 {[%clk 0:00:02.5]}
59... Nxc4 {[%clk 0:00:20.5]} 60. Be6 {[%clk 0:00:03.1]} 60... Ne5 {[%clk
0:00:16.1]} 61. Bxf7 {[%clk 0:00:03.5]} 61... Nxf7 {[%clk 0:00:13.8]} 62. g6
{[%clk 0:00:04]} 62... Nh6 {[%clk 0:00:14.1]} 63. Kg5 {[%clk 0:00:03.9]} 63...
Ng8 {[%clk 0:00:15]} 64. g7 {[%clk 0:00:04.2]} 64... Kd7 {[%clk 0:00:15.5]} 65.
Kg6 {[%clk 0:00:04.6]} 65... Ke8 {[%clk 0:00:15.8]} 66. a5 {[%clk 0:00:05]}
66... c4 {[%clk 0:00:16]} 67. Kf5 {[%clk 0:00:05.8]} 67... c3 {[%clk 0:00:16.3]}
68. Ke6 {[%clk 0:00:06.7]} 68... c2 {[%clk 0:00:16.9]} 69. Kxd6 {[%clk
0:00:07.6]} 69... c1=Q {[%clk 0:00:17.8]} 0-1

[Event "*** SCC Grand Prix: Titled Tuesday Blitz"]
[Site "Chess.com"]
[Date "2020.10.13"]
[Round "7"]
[White "PhileKhoob"]
[Black "Vamostodorecto"]
[Result "1-0"]
[WhiteElo "2505"]
[BlackElo "2365"]
[TimeControl "180+1"]
[EndTime "11:18:14 PDT"]
[Termination "PhileKhoob won on time"]

1. Nf3 {[%clk 0:03:00.9]} 1... d5 {[%clk 0:02:57.9]} 2. g3 {[%clk 0:02:57.6]}
2... Nf6 {[%clk 0:02:58.5]} 3. Bg2 {[%clk 0:02:58.5]} 3... g6 {[%clk 0:02:58.9]}
4. O-O {[%clk 0:02:59.3]} 4... Bg7 {[%clk 0:02:59.6]} 5. d4 {[%clk 0:02:59.3]}
5... O-O {[%clk 0:03:00.5]} 6. Ne5 {[%clk 0:02:59.3]} 6... c6 {[%clk 0:02:56.1]}
7. c4 {[%clk 0:02:56.2]} 7... Ng4 {[%clk 0:02:53.1]} 8. Nxg4 {[%clk 0:02:56.3]}
8... Bxg4 {[%clk 0:02:53.4]} 9. cxd5 {[%clk 0:02:57.2]} 9... cxd5 {[%clk
0:02:52.8]} 10. Nc3 {[%clk 0:02:58.1]} 10... Nc6 {[%clk 0:02:46.4]} 11. h3
{[%clk 0:02:49.9]} 11... Be6 {[%clk 0:02:42]} 12. Be3 {[%clk 0:02:40.3]} 12...
Qd7 {[%clk 0:02:41.2]} 13. Kh2 {[%clk 0:02:40.3]} 13... b5 {[%clk 0:02:27.9]}
14. Nxb5 {[%clk 0:02:29.3]} 14... Rab8 {[%clk 0:02:26.5]} 15. Nc3 {[%clk
0:02:29.5]} 15... Rxb2 {[%clk 0:02:24.9]} 16. Na4 {[%clk 0:02:30]} 16... Rb4
{[%clk 0:02:21.4]} 17. Nc5 {[%clk 0:02:30.2]} 17... Qd6 {[%clk 0:02:21.9]} 18.
Bf4 {[%clk 0:02:20.3]} 18... Qd8 {[%clk 0:02:18.1]} 19. Nxe6 {[%clk 0:02:15.4]}
19... fxe6 {[%clk 0:02:17]} 20. e3 {[%clk 0:02:15.6]} 20... Qa5 {[%clk
0:01:59.1]} 21. h4 {[%clk 0:02:12.2]} 21... Rd8 {[%clk 0:01:55.3]} 22. Qg4
{[%clk 0:02:05.8]} 22... Kf7 {[%clk 0:01:46.4]} 23. Bh3 {[%clk 0:01:24.5]} 23...
e5 {[%clk 0:01:29]} 24. dxe5 {[%clk 0:01:16]} 24... Qb6 {[%clk 0:01:10.7]} 25.
Qe6+ {[%clk 0:01:06.8]} 25... Kf8 {[%clk 0:01:09.8]} 26. h5 {[%clk 0:00:58.5]}
26... gxh5 {[%clk 0:00:48.7]} 27. Bh6 {[%clk 0:00:58.8]} 27... Na5 {[%clk
0:00:30.4]} 28. Bxg7+ {[%clk 0:00:53.5]} 28... Kxg7 {[%clk 0:00:31.3]} 29. Qxe7+
{[%clk 0:00:53.5]} 29... Kg6 {[%clk 0:00:28]} 30. Rac1 {[%clk 0:00:33.2]} 30...
Nc4 {[%clk 0:00:27.1]} 31. Rfd1 {[%clk 0:00:21.3]} 31... Rb2 {[%clk 0:00:25.7]}
32. Kg1 {[%clk 0:00:18.4]} 32... Nxe3 {[%clk 0:00:19]} 33. Re1 {[%clk
0:00:11.4]} 33... Ng4 {[%clk 0:00:13.7]} 34. Rc6+ {[%clk 0:00:07.5]} 34... Qxc6
{[%clk 0:00:12.1]} 35. Bxg4 {[%clk 0:00:07.8]} 35... hxg4 {[%clk 0:00:08]} 36.
Qxd8 {[%clk 0:00:07.9]} 36... Qe6 {[%clk 0:00:06.7]} 37. Rd1 {[%clk 0:00:05.5]}
37... Rxa2 {[%clk 0:00:03.3]} 38. Qxd5 {[%clk 0:00:04.9]} 38... Qxd5 {[%clk
0:00:02.6]} 39. Rxd5 {[%clk 0:00:05.8]} 39... Re2 {[%clk 0:00:02.9]} 40. Rd6+
{[%clk 0:00:04.6]} 40... Kf5 {[%clk 0:00:02.6]} 41. Rd7 {[%clk 0:00:05]} 41...
Rxe5 {[%clk 0:00:02.5]} 42. Rxa7 {[%clk 0:00:05.6]} 42... h5 {[%clk 0:00:01.3]}
43. Kg2 {[%clk 0:00:05.9]} 43... Kg5 {[%clk 0:00:01.8]} 44. Rg7+ {[%clk
0:00:05.6]} 44... Kf6 {[%clk 0:00:01.2]} 45. Ra7 {[%clk 0:00:06.5]} 45... Kg6
{[%clk 0:00:01.7]} 46. Ra6+ {[%clk 0:00:06.5]} 46... Kg5 {[%clk 0:00:02.2]} 47.
f4+ {[%clk 0:00:06.7]} 47... gxf3+ {[%clk 0:00:01.8]} 48. Kxf3 {[%clk
0:00:07.6]} 48... Rf5+ {[%clk 0:00:02.5]} 49. Kg2 {[%clk 0:00:07.8]} 49... Rf6
{[%clk 0:00:03.1]} 50. Ra4 {[%clk 0:00:08.1]} 50... Rf5 {[%clk 0:00:02.9]} 51.
Kh3 {[%clk 0:00:08.6]} 51... Re5 {[%clk 0:00:03]} 52. Rf4 {[%clk 0:00:08.5]}
52... Rd5 {[%clk 0:00:02.9]} 53. Re4 {[%clk 0:00:08.7]} 53... Rc5 {[%clk
0:00:03]} 54. Re8 {[%clk 0:00:09.2]} 54... Rd5 {[%clk 0:00:03.1]} 55. Rg8+
{[%clk 0:00:10.1]} 55... Kf6 {[%clk 0:00:03]} 56. Kh4 {[%clk 0:00:10.4]} 56...
Re5 {[%clk 0:00:02]} 57. Rf8+ {[%clk 0:00:09.7]} 57... Kg6 {[%clk 0:00:01.9]}
58. Rg8+ {[%clk 0:00:08.8]} 58... Kf7 {[%clk 0:00:01.4]} 59. Rg5 {[%clk
0:00:09]} 1-0

[Event "*** SCC Grand Prix: Titled Tuesday Blitz"]
[Site "Chess.com"]
[Date "2020.10.13"]
[Round "7"]
[White "WildBizon"]
[Black "grunbergmihai"]
[Result "1/2-1/2"]
[WhiteElo "2622"]
[BlackElo "2445"]
[TimeControl "180+1"]
[EndTime "11:18:24 PDT"]
[Termination "Game drawn - insufficient material"]

1. e4 {[%clk 0:03:00.9]} 1... Nf6 {[%clk 0:02:59.7]} 2. e5 {[%clk 0:03:00.8]}
2... Nd5 {[%clk 0:02:59.7]} 3. d4 {[%clk 0:03:01.3]} 3... d6 {[%clk 0:02:59.8]}
4. c4 {[%clk 0:03:00.1]} 4... Nb6 {[%clk 0:02:59.5]} 5. exd6 {[%clk 0:03:00.7]}
5... cxd6 {[%clk 0:02:59.6]} 6. Bd3 {[%clk 0:03:00.7]} 6... g6 {[%clk
0:02:58.4]} 7. Ne2 {[%clk 0:03:00.3]} 7... Bg7 {[%clk 0:02:58.6]} 8. O-O {[%clk
0:02:59.6]} 8... Nc6 {[%clk 0:02:55.3]} 9. Be3 {[%clk 0:02:56]} 9... Bg4 {[%clk
0:02:54.6]} 10. f3 {[%clk 0:02:54.1]} 10... Bf5 {[%clk 0:02:54.7]} 11. Bxf5
{[%clk 0:02:52.2]} 11... Nxc4 {[%clk 0:02:54.6]} 12. Bf2 {[%clk 0:02:36.9]}
12... gxf5 {[%clk 0:02:54]} 13. Qc2 {[%clk 0:02:37]} 13... d5 {[%clk 0:02:47.6]}
14. Qxf5 {[%clk 0:02:34.7]} 14... Nxb2 {[%clk 0:02:45.4]} 15. Nbc3 {[%clk
0:02:34.5]} 15... e6 {[%clk 0:02:32.9]} 16. Qg4 {[%clk 0:02:34.6]} 16... O-O
{[%clk 0:02:28.1]} 17. Rab1 {[%clk 0:02:34]} 17... f5 {[%clk 0:02:18.9]} 18. Qh4
{[%clk 0:02:16.7]} 18... Qxh4 {[%clk 0:02:12.6]} 19. Bxh4 {[%clk 0:02:16.8]}
19... Nc4 {[%clk 0:02:09.6]} 20. Rxb7 {[%clk 0:02:13.7]} 20... Rf7 {[%clk
0:02:09.4]} 21. Rxf7 {[%clk 0:02:06.2]} 21... Kxf7 {[%clk 0:02:09.2]} 22. Bf2
{[%clk 0:02:06.8]} 22... Rb8 {[%clk 0:02:07.9]} 23. Rb1 {[%clk 0:02:06.9]} 23...
Rb2 {[%clk 0:01:51.9]} 24. Rxb2 {[%clk 0:02:04]} 24... Nxb2 {[%clk 0:01:51.7]}
25. Kf1 {[%clk 0:02:02.7]} 25... Nd3 {[%clk 0:01:44.8]} 26. Be3 {[%clk 0:02:01]}
26... Ndb4 {[%clk 0:01:44.5]} 27. Nb5 {[%clk 0:01:39.9]} 27... Nxa2 {[%clk
0:01:35.2]} 28. Ke1 {[%clk 0:01:35.3]} 28... a6 {[%clk 0:01:23.8]} 29. Nc7
{[%clk 0:01:33.3]} 29... Nab4 {[%clk 0:01:23.3]} 30. Kd2 {[%clk 0:01:33.2]}
30... Ke7 {[%clk 0:01:18.3]} 31. Kc3 {[%clk 0:01:32.7]} 31... Kd7 {[%clk
0:01:17.6]} 32. Na8 {[%clk 0:01:32.9]} 32... a5 {[%clk 0:01:04.5]} 33. Nb6+
{[%clk 0:01:32.7]} 33... Ke7 {[%clk 0:01:01.8]} 34. Na4 {[%clk 0:01:33.6]} 34...
Na6 {[%clk 0:00:54.5]} 35. Kb3 {[%clk 0:01:29.6]} 35... Nc7 {[%clk 0:00:52.9]}
36. Kc2 {[%clk 0:01:21.5]} 36... Nb5 {[%clk 0:00:51.8]} 37. Kd3 {[%clk
0:01:21.8]} 37... Nb4+ {[%clk 0:00:50.8]} 38. Kd2 {[%clk 0:01:21]} 38... Nd6
{[%clk 0:00:50.4]} 39. Bf2 {[%clk 0:01:17.8]} 39... Nc4+ {[%clk 0:00:49.8]} 40.
Kc3 {[%clk 0:01:17.9]} 40... Nc6 {[%clk 0:00:49.1]} 41. Nc5 {[%clk 0:01:15.8]}
41... Kd6 {[%clk 0:00:46.8]} 42. Nb7+ {[%clk 0:01:15.1]} 42... Kc7 {[%clk
0:00:46.6]} 43. Nc5 {[%clk 0:01:15.5]} 43... Kd6 {[%clk 0:00:43.2]} 44. Bg3+
{[%clk 0:01:14.5]} 44... e5 {[%clk 0:00:41.6]} 45. Nb7+ {[%clk 0:01:10.9]} 45...
Ke7 {[%clk 0:00:35.8]} 46. dxe5 {[%clk 0:01:07.6]} 46... Bxe5+ {[%clk
0:00:35.2]} 47. Bxe5 {[%clk 0:01:05.7]} 47... N6xe5 {[%clk 0:00:33.4]} 48. Kd4
{[%clk 0:01:05.9]} 48... Ke6 {[%clk 0:00:27.1]} 49. Nf4+ {[%clk 0:01:05.5]}
49... Kf7 {[%clk 0:00:21.8]} 50. Nxd5 {[%clk 0:01:00.9]} 50... a4 {[%clk
0:00:19.8]} 51. f4 {[%clk 0:00:54.6]} 51... a3 {[%clk 0:00:19.4]} 52. Nc3 {[%clk
0:00:54.7]} 52... Ng6 {[%clk 0:00:11.3]} 53. Kxc4 {[%clk 0:00:54.2]} 53... Nxf4
{[%clk 0:00:12.2]} 54. g3 {[%clk 0:00:53.2]} 54... Ne2 {[%clk 0:00:11.6]} 55.
Kd3 {[%clk 0:00:51.4]} 55... Ng1 {[%clk 0:00:09.3]} 56. Ke3 {[%clk 0:00:51.6]}
56... Kg6 {[%clk 0:00:08.8]} 57. Nd6 {[%clk 0:00:49.3]} 57... Nh3 {[%clk
0:00:07.9]} 58. Nc4 {[%clk 0:00:48.6]} 58... h5 {[%clk 0:00:06.8]} 59. Nxa3
{[%clk 0:00:48.3]} 59... h4 {[%clk 0:00:07.7]} 60. Nd5 {[%clk 0:00:45.7]} 60...
hxg3 {[%clk 0:00:07.1]} 61. hxg3 {[%clk 0:00:45.6]} 61... Kg5 {[%clk 0:00:08]}
62. Kf3 {[%clk 0:00:45]} 62... Ng1+ {[%clk 0:00:08.1]} 63. Kg2 {[%clk
0:00:42.1]} 63... Kg4 {[%clk 0:00:07.6]} 64. Ne3+ {[%clk 0:00:40.8]} 64... Kg5
{[%clk 0:00:06.7]} 65. Nd5 {[%clk 0:00:36.7]} 65... Ne2 {[%clk 0:00:06.1]} 66.
Nc4 {[%clk 0:00:31.2]} 66... f4 {[%clk 0:00:05.6]} 67. Kf3 {[%clk 0:00:28]}
67... Nxg3 {[%clk 0:00:05.2]} 68. Nd6 {[%clk 0:00:27.9]} 68... Nf5 {[%clk
0:00:05.1]} 69. Ne4+ {[%clk 0:00:24.9]} 69... Kg6 {[%clk 0:00:05.2]} 70. Nxf4+
{[%clk 0:00:24.6]} 70... Kf7 {[%clk 0:00:05.1]} 71. Kg4 {[%clk 0:00:25.5]} 71...
Nd6 {[%clk 0:00:05.1]} 72. Kg5 {[%clk 0:00:26.2]} 72... Nxe4+ {[%clk 0:00:04.9]}
1/2-1/2